fUST/lending_fUST_20250814
["ID","MTS","AMOUNT","RATE_DAILY","PERIOD"]
[379136468,1755155102226,460.0,0.00018174,2]
[379136469,1755155110650,300.0,0.00018174,2]
[379136470,1755155110704,940.76,0.00018174,2]
[379136471,1755155128311,2456.31,0.00018174,2]
[379136472,1755155131040,570.56,0.00018174,2]
[379136475,1755155162545,175.80698425,0.00018174,2]
[379136476,1755155162570,124.19301575,0.00018174,2]
[379136477,1755155180918,1201.84625,0.00017182,2]
[379136478,1755155192783,2000.0,0.0001778,2]
[379136479,1755155197558,2465.4125168,0.00017318,2]
[379136480,1755155200466,4208.54821745,0.00018078,2]
[379136481,1755155200491,10000.0,0.00018078,2]
[379136482,1755155200513,10000.0,0.00018078,2]
[379136483,1755155200536,10000.0,0.00018078,2]
[379136484,1755155200558,10000.0,0.00018078,2]
[379136485,1755155200580,10000.0,0.00018078,2]
[379136486,1755155200603,2274.81352328,0.00018078,2]
[379136487,1755155200878,460.0,0.00018174,2]
[379136488,1755155203054,4720.01,0.00018174,2]
[379136489,1755155205536,157.65818684,0.00018078,2]
[379136490,1755155205949,679.19,0.00018174,2]
[379136491,1755155211890,460.0,0.00018174,2]
[379136492,1755155223175,300.0,0.00018174,2]
[379136493,1755155227385,460.0,0.00018174,2]
[379136494,1755155240839,488.32828988,0.00018174,2]
[379136495,1755155240862,48.97171012,0.00018174,2]
[379136496,1755155244260,3172.75,0.00018174,2]
[379136498,1755155268221,962.42,0.00018174,2]
[379136499,1755155269187,975.75,0.00018174,2]
[379136500,1755155277710,460.0,0.00018174,2]
[379136503,1755155283681,300.0,0.00018174,2]
[379136504,1755155285388,3717.24,0.00018174,2]
[379136505,1755155291136,362.86828988,0.00018174,2]
[379136506,1755155291163,97.13171012,0.00018174,2]
[379136507,1755155302001,460.0,0.00018174,2]
[379136510,1755155303865,1847.26,0.00018174,2]
[379136511,1755155309642,460.0,0.00018174,2]
[379136512,1755155318272,1374.04943536,0.00018075,2]
[379136513,1755155320880,3165.01,0.00018174,2]
[379136521,1755155329866,658.62,0.00018174,2]
[379136522,1755155334362,460.0,0.00018174,2]
[379136523,1755155343249,300.0,0.00018174,2]
[379136524,1755155346223,901.56,0.00018174,2]
[379136525,1755155348049,276.36885452,0.00018174,2]
[379136526,1755155348076,204.41926583,0.00018174,2]
[379136528,1755155351987,460.0,0.00018174,2]
[379136529,1755155363478,2353.97,0.00018174,2]
[379136530,1755155364078,6981.61073417,0.00018076,2]
[379136531,1755155364102,10000.0,0.00018076,2]
[379136532,1755155364124,10000.0,0.00018076,2]
[379136533,1755155364151,10000.0,0.00018076,2]
[379136534,1755155364174,10000.0,0.00018076,2]
[379136535,1755155364197,10000.0,0.00018076,2]
[379136536,1755155364221,10000.0,0.00018076,2]
[379136537,1755155364246,10000.0,0.00018076,2]
[379136538,1755155364270,519.47926448,0.00018076,2]
[379136539,1755155372750,698.69,0.00018174,2]
[379136541,1755155373704,547.30161457,0.00018075,2]
[379136542,1755155375525,5000.0,0.00018174,2]
[379136543,1755155383835,3234.52912095,0.00018174,2]
[379136544,1755155383857,1765.47087905,0.00018174,2]
[379136546,1755155391889,546.79,0.00018174,2]
[379136547,1755155393022,5000.0,0.00018174,2]
[379136548,1755155394774,473.16,0.00018174,2]
[379136549,1755155397252,518.07,0.00018174,2]
[379136550,1755155401622,1696.50912095,0.00018174,2]
[379136551,1755155401646,3303.49087905,0.00018174,2]
[379136552,1755155404091,300.0,0.00018174,2]
[379136554,1755155410405,460.0,0.00018174,2]
[379136555,1755155411216,5000.0,0.00018174,2]
[379136556,1755155412158,151.0,0.0001817,2]
[379136557,1755155419831,785.50912095,0.00018174,2]
[379136558,1755155419855,4214.49087905,0.00018174,2]
[379136559,1755155420486,460.0,0.00018174,2]
[379136561,1755155421519,1020.86,0.00018174,2]
[379136562,1755155422403,2691.97,0.00018174,2]
[379136563,1755155422719,460.0,0.00018174,2]
[379136564,1755155422911,650.89,0.00018174,2]
[379136565,1755155424961,460.0,0.00018174,2]
[379136566,1755155427672,41.78912095,0.00018174,2]
[379136567,1755155427695,418.21087905,0.00018174,2]
[379136569,1755155428573,5000.0,0.00018174,2]
[379136570,1755155428888,460.0,0.00018174,2]
[379136597,1755155431678,753.88,0.00018174,2]
[379136635,1755155432046,-405.88,0.00018175,2]
[379136638,1755155432060,-54.12,0.00018175,2]
[379136640,1755155432069,-460.0,0.00018175,2]
[379136642,1755155432079,-460.0,0.00018175,2]
[379136644,1755155432088,-460.0,0.00018175,2]
[379136646,1755155432098,-460.0,0.00018175,2]
[379136665,1755155432107,-460.0,0.00018175,2]
[379136668,1755155432302,-412.68978428,0.00018175,2]
[379136670,1755155432314,-527.3554621,0.00018175,2]
[379136672,1755155432327,-593.79374207,0.00018175,2]
[379136675,1755155432339,-110.78101155,0.00018175,2]
[379136677,1755155432348,-460.0,0.00018175,2]
[379136679,1755155432358,-460.0,0.00018175,2]
[379136681,1755155432367,-460.0,0.00018175,2]
[379136683,1755155432386,-573.79,0.00018175,2]
[379136685,1755155432396,-461.06080029,0.00018175,2]
[379136686,1755155432405,-907.78,0.00018175,2]
[379136687,1755155432415,-460.0,0.00018175,2]
[379136688,1755155432424,-460.0,0.00018175,2]
[379136689,1755155432432,-1589.06,0.00018175,2]
[379136691,1755155432441,-460.0,0.00018175,2]
[379136693,1755155432451,-554.53,0.00018175,2]
[379136695,1755155432460,-460.0,0.00018175,2]
[379136696,1755155432469,-460.0,0.00018175,2]
[379136699,1755155432479,-460.0,0.00018175,2]
[379136700,1755155432488,-460.0,0.00018175,2]
[379136702,1755155432497,-460.0,0.00018175,2]
[379136703,1755155432507,-460.0,0.00018175,2]
[379136704,1755155432516,-460.0,0.00018175,2]
[379136705,1755155432526,-671.78,0.00018175,2]
[379136706,1755155432536,-460.0,0.00018175,2]
[379136707,1755155432545,-460.0,0.00018175,2]
[379136708,1755155432555,-460.0,0.00018175,2]
[379136709,1755155432564,-460.0,0.00018175,2]
[379136710,1755155432573,-868.63,0.00018175,2]
[379136711,1755155432583,-1158.5,0.00018175,2]
[379136712,1755155432592,-460.0,0.00018175,2]
[379136713,1755155432602,-857.42,0.00018175,2]
[379136714,1755155432611,-460.0,0.00018175,2]
[379136715,1755155432624,-460.0,0.00018175,2]
[379136716,1755155432635,-1894.56,0.00018175,2]
[379136717,1755155432644,-327.1744739,0.00018175,2]
[379136718,1755155432654,-1346.19,0.00018175,2]
[379136719,1755155432663,-1301.0,0.00018175,2]
[379136720,1755155432673,-460.0,0.00018175,2]
[379136721,1755155432682,-460.0,0.00018175,2]
[379136722,1755155432692,-460.0,0.00018175,2]
[379136723,1755155432702,-460.0,0.00018175,2]
[379136724,1755155432711,-1394.89,0.00018175,2]
[379136725,1755155432721,-981.34,0.00018175,2]
[379136726,1755155432731,-460.0,0.00018175,2]
[379136727,1755155432740,-460.0,0.00018175,2]
[379136728,1755155432750,-460.0,0.00018175,2]
[379136729,1755155432760,-1120.15,0.00018175,2]
[379136730,1755155432770,-460.0,0.00018175,2]
[379136731,1755155432780,-460.0,0.00018175,2]
[379136732,1755155432790,-460.0,0.00018176,2]
[379136733,1755155432799,-407.91293757,0.00018176,2]
[379136734,1755155432809,-460.0,0.00018176,2]
[379136735,1755155432819,-460.0,0.00018176,2]
[379136736,1755155432828,-651.62,0.00018176,2]
[379136737,1755155432839,-460.0,0.00018176,2]
[379136738,1755155432848,-460.0,0.00018176,2]
[379136739,1755155432858,-460.0,0.00018176,2]
[379136740,1755155432867,-460.0,0.00018176,2]
[379136741,1755155432877,-460.0,0.00018176,2]
[379136742,1755155432888,-460.0,0.00018176,2]
[379136743,1755155432898,-460.0,0.00018176,2]
[379136744,1755155432909,-460.0,0.00018176,2]
[379136745,1755155432918,-460.0,0.00018176,2]
[379136746,1755155432928,-460.0,0.00018176,2]
[379136747,1755155432938,-460.0,0.00018176,2]
[379136748,1755155432948,-460.0,0.00018176,2]
[379136749,1755155432958,-460.0,0.00018176,2]
[379136750,1755155432967,-460.0,0.00018176,2]
[379136751,1755155432977,-460.0,0.00018176,2]
[379136752,1755155432987,-363.55252428,0.00018176,2]
[379136753,1755155432996,-460.0,0.00018176,2]
[379136754,1755155433006,-460.0,0.00018176,2]
[379136755,1755155433015,-460.0,0.00018176,2]
[379136756,1755155433025,-460.0,0.00018176,2]
[379136757,1755155433035,-460.0,0.00018176,2]
[379136758,1755155433045,-460.0,0.00018176,2]
[379136759,1755155433055,-460.0,0.00018176,2]
[379136760,1755155433066,-460.0,0.00018176,2]
[379136761,1755155433076,-460.0,0.00018176,2]
[379136762,1755155433086,-478.89,0.00018176,2]
[379136763,1755155433096,-494.47,0.00018176,2]
[379136764,1755155433106,-460.0,0.00018176,2]
[379136765,1755155433117,-460.0,0.00018176,2]
[379136766,1755155433127,-1250.11,0.00018176,2]
[379136767,1755155433139,-460.0,0.00018176,2]
[379136768,1755155433150,-523.5,0.00018176,2]
[379136769,1755155433163,-460.0,0.00018176,2]
[379136770,1755155433173,-460.0,0.00018176,2]
[379136771,1755155433184,-560.45,0.00018176,2]
[379136772,1755155433195,-2260.42,0.00018176,2]
[379136773,1755155433205,-460.0,0.00018176,2]
[379136774,1755155433215,-1073.34,0.00018176,2]
[379136775,1755155433226,-533.97,0.00018176,2]
[379136776,1755155433238,-460.0,0.00018176,2]
[379136777,1755155433249,-460.0,0.00018176,2]
[379136778,1755155433259,-460.0,0.00018176,2]
[379136779,1755155433269,-460.0,0.00018176,2]
[379136780,1755155433279,-460.0,0.00018176,2]
[379136781,1755155433289,-460.0,0.00018176,2]
[379136782,1755155433299,-460.0,0.00018176,2]
[379136783,1755155433309,-460.0,0.00018176,2]
[379136784,1755155433319,-460.0,0.00018176,2]
[379136785,1755155433329,-460.0,0.00018176,2]
[379136786,1755155433339,-460.0,0.00018176,2]
[379136787,1755155433349,-794.93,0.00018176,2]
[379136788,1755155433358,-179.60574432,0.00018176,2]
[379136789,1755155433368,-460.0,0.00018176,2]
[379136790,1755155433377,-460.0,0.00018176,2]
[379136791,1755155433388,-460.0,0.00018176,2]
[379136792,1755155433398,-460.0,0.00018176,2]
[379136793,1755155433408,-460.0,0.00018176,2]
[379136794,1755155433418,-460.0,0.00018176,2]
[379136795,1755155433428,-460.0,0.00018176,2]
[379136796,1755155433438,-460.0,0.00018176,2]
[379136797,1755155433448,-460.0,0.00018176,2]
[379136798,1755155433457,-1301.07,0.00018176,2]
[379136799,1755155433467,-620.72,0.00018176,2]
[379136800,1755155433476,-186.56536368,0.00018176,2]
[379136801,1755155433490,-903.82463632,0.00018176,2]
[379136802,1755155433500,-62.5612626,0.00018176,2]
[379136803,1755155433511,-651.4287374,0.00018176,2]
[379136804,1755155433520,-280.27449649,0.00018176,2]
[379136805,1755155433533,-179.72550351,0.00018176,2]
[379136806,1755155433543,-457.43721432,0.00018176,2]
[379136807,1755155435182,460.0,0.00018174,2]
[379136808,1755155437764,900.89329063,0.00018174,2]
[379136886,1755155440278,1246.85,0.00018174,2]
[379136932,1755155440741,576.00296941,0.00018174,2]
[379136998,1755155443027,184.16286091,0.00018174,2]
[379137001,1755155443050,275.83713909,0.00018174,2]
[379137008,1755155444505,624.47,0.00018174,2]
[379137009,1755155445207,446.61,0.00030137,120]
[379137010,1755155445275,460.0,0.00018174,2]
[379137015,1755155446739,5000.0,0.00018174,2]
[379137016,1755155447589,460.0,0.00018174,2]
[379137017,1755155449345,460.0,0.00018174,2]
[379137018,1755155453861,460.0,0.00018174,2]
[379137022,1755155456009,460.0,0.00018174,2]
[379137023,1755155462985,1799.69286091,0.00018174,2]
[379137024,1755155463009,3200.30713909,0.00018174,2]
[379137025,1755155464194,4523.35,0.00018174,2]
[379137026,1755155464719,684.24,0.00018174,2]
[379137027,1755155465982,1592.10286091,0.00018174,2]
[379137028,1755155466007,1316.24713909,0.00018174,2]
[379137029,1755155468593,151.11938259,0.00018076,2]
[379137030,1755155473257,460.0,0.00018174,2]
[379137031,1755155476793,460.0,0.00018174,2]
[379137032,1755155478709,452.98438446,0.00018174,2]
[379137033,1755155479527,460.0,0.00018174,2]
[379137034,1755155485034,935.09,0.00018174,2]
[379137035,1755155485354,460.0,0.00018174,2]
[379137037,1755155487438,460.0,0.00018174,2]
[379137038,1755155492951,460.0,0.00018174,2]
[379137039,1755155493048,527.87,0.00018174,2]
[379137040,1755155493754,1312.88,0.00018174,2]
[379137041,1755155498457,-300.0,0.00018175,2]
[379137042,1755155498467,-792.71,0.00018175,2]
[379137043,1755155498477,-460.0,0.00018176,2]
[379137044,1755155498487,-578.8,0.00018176,2]
[379137045,1755155498497,-1078.96,0.00018176,2]
[379137046,1755155498506,-460.0,0.00018176,2]
[379137047,1755155498516,-754.77,0.00018176,2]
[379137048,1755155498526,-460.0,0.00018176,2]
[379137049,1755155498535,-1515.38,0.00018176,2]
[379137050,1755155498544,-460.0,0.00018176,2]
[379137051,1755155498554,-662.12,0.00018176,2]
[379137052,1755155498563,-928.86,0.00018176,2]
[379137053,1755155498573,-460.0,0.00018176,2]
[379137054,1755155498583,-460.0,0.00018176,2]
[379137055,1755155498592,-898.83,0.00018176,2]
[379137056,1755155498602,-460.0,0.00018176,2]
[379137057,1755155498611,-460.0,0.00018176,2]
[379137058,1755155498620,-460.0,0.00018176,2]
[379137059,1755155498630,-460.0,0.00018176,2]
[379137060,1755155498639,-460.0,0.00018176,2]
[379137061,1755155498649,-460.0,0.00018176,2]
[379137062,1755155498659,-460.0,0.00018176,2]
[379137063,1755155498668,-460.0,0.00018176,2]
[379137064,1755155498678,-460.0,0.00018176,2]
[379137065,1755155498687,-460.0,0.00018176,2]
[379137066,1755155498698,-460.0,0.00018176,2]
[379137067,1755155498708,-460.0,0.00018176,2]
[379137068,1755155498718,-500.0,0.00018176,2]
[379137069,1755155498727,-460.0,0.00018176,2]
[379137070,1755155498737,-460.0,0.00018176,2]
[379137071,1755155498747,-460.0,0.00018176,2]
[379137072,1755155498756,-826.18,0.00018176,2]
[379137073,1755155498765,-583.5,0.00018176,2]
[379137074,1755155498775,-460.0,0.00018176,2]
[379137075,1755155498785,-460.0,0.00018176,2]
[379137076,1755155498795,-460.0,0.00018176,2]
[379137077,1755155498804,-556.98,0.00018176,2]
[379137078,1755155498818,-460.0,0.00018176,2]
[379137079,1755155498827,-460.0,0.00018176,2]
[379137080,1755155498837,-460.0,0.00018176,2]
[379137081,1755155498847,-460.0,0.00018176,2]
[379137082,1755155498857,-460.0,0.00018176,2]
[379137083,1755155498867,-460.0,0.00018176,2]
[379137084,1755155498876,-460.0,0.00018176,2]
[379137085,1755155498885,-460.0,0.00018176,2]
[379137086,1755155498895,-460.0,0.00018176,2]
[379137087,1755155498904,-875.16,0.00018176,2]
[379137088,1755155498914,-460.0,0.00018176,2]
[379137089,1755155498938,-460.0,0.00018176,2]
[379137090,1755155498959,-460.0,0.00018176,2]
[379137091,1755155498978,-460.0,0.00018176,2]
[379137092,1755155498997,-460.0,0.00018176,2]
[379137093,1755155499016,-460.0,0.00018176,2]
[379137094,1755155499034,-1311.61,0.00018176,2]
[379137095,1755155499052,-461.66,0.00018176,2]
[379137096,1755155499071,-460.0,0.00018176,2]
[379137097,1755155499089,-460.0,0.00018176,2]
[379137098,1755155499105,-460.0,0.00018176,2]
[379137099,1755155499115,-460.0,0.00018176,2]
[379137100,1755155499124,-460.0,0.00018176,2]
[379137101,1755155499133,-460.0,0.00018176,2]
[379137102,1755155499142,-460.0,0.00018176,2]
[379137104,1755155499152,-460.0,0.00018176,2]
[379137106,1755155499161,-1278.82,0.00018176,2]
[379137107,1755155499170,-460.0,0.00018176,2]
[379137109,1755155499180,-1576.09,0.00018176,2]
[379137110,1755155499194,-1114.02,0.00018176,2]
[379137111,1755155499203,-460.0,0.00018176,2]
[379137112,1755155499213,-460.0,0.00018176,2]
[379137113,1755155499222,-460.0,0.00018176,2]
[379137115,1755155499235,-460.0,0.00018176,2]
[379137116,1755155499245,-460.0,0.00018176,2]
[379137117,1755155499255,-460.0,0.00018176,2]
[379137118,1755155499268,-460.0,0.00018176,2]
[379137119,1755155499277,-549.88,0.00018176,2]
[379137120,1755155499286,-460.0,0.00018176,2]
[379137121,1755155499296,-461.94176406,0.00018176,2]
[379137122,1755155499307,-996.06,0.00018176,2]
[379137123,1755155499321,-869.96,0.00018176,2]
[379137124,1755155499331,-460.0,0.00018177,2]
[379137125,1755155499342,-460.0,0.00018177,2]
[379137126,1755155499352,-1172.05,0.00018177,2]
[379137127,1755155499362,-1089.76,0.00018177,2]
[379137128,1755155499371,-930.96,0.00018177,2]
[379137129,1755155499381,-460.0,0.00018177,2]
[379137130,1755155499391,-3351.93,0.00018177,2]
[379137131,1755155499400,-2473.07,0.00018177,2]
[379137132,1755155499410,-632.41,0.00018177,2]
[379137133,1755155499419,-460.0,0.00018177,2]
[379137134,1755155499429,-855.92,0.00018177,2]
[379137135,1755155499438,-3530.91,0.00018177,2]
[379137136,1755155499449,-460.0,0.00018177,2]
[379137137,1755155499458,-460.0,0.00018178,2]
[379137138,1755155499468,-460.0,0.00018178,2]
[379137139,1755155499477,-158.15447284,0.00018178,2]
[379137140,1755155499487,-492.38,0.00018178,2]
[379137141,1755155499496,-460.0,0.00018178,2]
[379137142,1755155499506,-460.0,0.00018178,2]
[379137143,1755155499516,-460.0,0.00018178,2]
[379137144,1755155499526,-460.0,0.00018178,2]
[379137145,1755155499535,-605.01,0.00018178,2]
[379137146,1755155499545,-460.0,0.00018178,2]
[379137147,1755155499555,-297.81070416,0.00018178,2]
[379137148,1755155499567,-460.0,0.00018178,2]
[379137149,1755155499576,-839.93,0.00018178,2]
[379137150,1755155499586,-460.0,0.00018178,2]
[379137151,1755155499784,-921.14,0.00018178,2]
[379137152,1755155499793,-460.0,0.00018178,2]
[379137153,1755155499803,-461.70036656,0.00018178,2]
[379137154,1755155499812,-460.0,0.00018178,2]
[379137155,1755155499823,-460.0,0.00018178,2]
[379137156,1755155499832,-461.27535362,0.00018178,2]
[379137157,1755155499841,-460.0,0.00018178,2]
[379137158,1755155499852,-414.46618828,0.00018178,2]
[379137159,1755155499862,-460.0,0.00018178,2]
[379137160,1755155499872,-460.0,0.00018178,2]
[379137161,1755155499881,-460.0,0.00018178,2]
[379137162,1755155499891,-460.0,0.00018178,2]
[379137163,1755155499900,-460.0,0.00018178,2]
[379137164,1755155499910,-460.0,0.00018178,2]
[379137165,1755155499919,-498.38,0.00018178,2]
[379137166,1755155499929,-460.0,0.00018178,2]
[379137167,1755155499939,-460.0,0.00018178,2]
[379137168,1755155499949,-460.0,0.00018178,2]
[379137169,1755155499959,-460.0,0.00018178,2]
[379137170,1755155499969,-462.37319109,0.00018178,2]
[379137171,1755155499980,-460.0,0.00018178,2]
[379137172,1755155499990,-347.65585921,0.00018178,2]
[379137173,1755155500000,-460.0,0.00018178,2]
[379137174,1755155500010,-460.0,0.00018178,2]
[379137175,1755155500025,-460.0,0.00018178,2]
[379137176,1755155500035,-460.0,0.00018178,2]
[379137177,1755155500045,-460.0,0.00018178,2]
[379137179,1755155500055,-460.0,0.00018178,2]
[379137180,1755155500064,-460.0,0.00018178,2]
[379137181,1755155500073,-460.0,0.00018178,2]
[379137182,1755155500083,-460.0,0.00018178,2]
[379137183,1755155500092,-460.0,0.00018178,2]
[379137184,1755155500101,-460.0,0.00018178,2]
[379137185,1755155500111,-460.0,0.00018178,2]
[379137186,1755155500121,-460.0,0.00018178,2]
[379137187,1755155500130,-460.0,0.00018178,2]
[379137188,1755155500140,-460.0,0.00018178,2]
[379137189,1755155500149,-503.38479789,0.00018178,2]
[379137191,1755155500158,-461.19690133,0.00018178,2]
[379137192,1755155500168,-460.0,0.00018178,2]
[379137193,1755155500178,-460.0,0.00018178,2]
[379137194,1755155500193,-461.31190261,0.00018178,2]
[379137195,1755155500202,-460.0,0.00018178,2]
[379137196,1755155500211,-460.0,0.00018178,2]
[379137197,1755155500220,-460.0,0.00018178,2]
[379137198,1755155500230,-460.0,0.00018178,2]
[379137199,1755155500240,-460.0,0.00018178,2]
[379137200,1755155500250,-460.0,0.00018178,2]
[379137202,1755155500260,-460.0,0.00018178,2]
[379137203,1755155500270,-460.0,0.00018178,2]
[379137204,1755155500279,-460.0,0.00018178,2]
[379137205,1755155500288,-460.0,0.00018178,2]
[379137206,1755155500298,-345.62166821,0.00018178,2]
[379137207,1755155500307,-460.0,0.00018178,2]
[379137208,1755155500316,-460.0,0.00018178,2]
[379137209,1755155500325,-462.17084166,0.00018178,2]
[379137210,1755155500335,-549.48,0.00018178,2]
[379137211,1755155500344,-466.1882192,0.00018178,2]
[379137212,1755155500354,-460.0,0.00018178,2]
[379137214,1755155500363,-462.91329562,0.00018178,2]
[379137215,1755155500372,-460.0,0.00018178,2]
[379137216,1755155500382,-540.30738997,0.00018178,2]
[379137217,1755155500391,-586.46,0.00018178,2]
[379137218,1755155500400,-460.0,0.00018178,2]
[379137219,1755155500410,-460.0,0.00018178,2]
[379137220,1755155500419,-489.26,0.00018178,2]
[379137221,1755155500429,-460.0,0.00018178,2]
[379137222,1755155500438,-460.0,0.00018178,2]
[379137223,1755155500449,-460.0,0.00018178,2]
[379137224,1755155500458,-460.0,0.00018178,2]
[379137225,1755155500467,-460.0,0.00018178,2]
[379137226,1755155500476,-460.0,0.00018178,2]
[379137227,1755155500486,-460.0,0.00018178,2]
[379137228,1755155500495,-460.0,0.00018178,2]
[379137229,1755155500504,-460.0,0.00018178,2]
[379137230,1755155500513,-460.0,0.00018178,2]
[379137231,1755155500522,-460.0,0.00018178,2]
[379137232,1755155500537,-980.35,0.00018178,2]
[379137233,1755155500558,-460.0,0.00018178,2]
[379137234,1755155500572,-461.77736228,0.00018178,2]
[379137235,1755155500581,-460.0,0.00018178,2]
[379137236,1755155500590,-460.0,0.00018178,2]
[379137237,1755155500600,-460.0,0.00018178,2]
[379137238,1755155500609,-460.0,0.00018178,2]
[379137239,1755155500619,-460.0,0.00018178,2]
[379137240,1755155500628,-460.0,0.00018178,2]
[379137241,1755155500638,-460.0,0.00018178,2]
[379137242,1755155500647,-460.0,0.00018178,2]
[379137243,1755155500656,-460.0,0.00018178,2]
[379137244,1755155500666,-460.0,0.00018178,2]
[379137245,1755155500675,-164.99888307,0.00018178,2]
[379137246,1755155500685,-463.31801615,0.00018178,2]
[379137247,1755155500696,-538.88,0.00018178,2]
[379137248,1755155500705,-460.0,0.00018178,2]
[379137249,1755155500715,-460.0,0.00018178,2]
[379137250,1755155500724,-460.0,0.00018178,2]
[379137251,1755155500733,-460.0,0.00018178,2]
[379137252,1755155500742,-460.0,0.00018178,2]
[379137253,1755155500751,-460.0,0.00018178,2]
[379137254,1755155500760,-460.0,0.00018178,2]
[379137255,1755155500769,-460.0,0.00018178,2]
[379137256,1755155500779,-460.0,0.00018178,2]
[379137257,1755155500788,-460.0,0.00018178,2]
[379137258,1755155500797,-460.0,0.00018178,2]
[379137259,1755155500806,-460.0,0.00018178,2]
[379137260,1755155500815,-460.0,0.00018178,2]
[379137261,1755155500825,-460.0,0.00018178,2]
[379137262,1755155500835,-460.0,0.00018178,2]
[379137263,1755155500844,-542.09,0.00018178,2]
[379137264,1755155500854,-506.36170116,0.00018178,2]
[379137265,1755155500863,-460.0,0.00018178,2]
[379137266,1755155500873,-460.0,0.00018178,2]
[379137267,1755155500883,-899.7,0.00018178,2]
[379137268,1755155500892,-500.0,0.0001818,2]
[379137269,1755155500901,-500.0,0.0001818,2]
[379137270,1755155500910,-214.27457925,0.0001818,2]
[379137271,1755155500920,-500.0,0.0001818,2]
[379137272,1755155500929,-500.0,0.0001818,2]
[379137273,1755155500938,-500.0,0.0001818,2]
[379137274,1755155500949,-1198.26,0.00018181,2]
[379137275,1755155500958,-648.44,0.00018181,2]
[379137276,1755155500968,-13058.9,0.00018181,2]
[379137277,1755155500978,-13877.95,0.00018181,2]
[379137278,1755155500987,-1352.01,0.00018181,2]
[379137279,1755155500997,-3386.18,0.00018181,2]
[379137280,1755155501006,-1449.54,0.00018181,2]
[379137281,1755155501015,-9771.2,0.00018181,2]
[379137282,1755155501024,-1585.28,0.00018181,2]
[379137283,1755155501034,-460.0,0.00018183,2]
[379137284,1755155501043,-460.0,0.00018183,2]
[379137285,1755155501053,-460.0,0.00018183,2]
[379137286,1755155501062,-654.67,0.00018183,2]
[379137287,1755155501072,-460.0,0.00018183,2]
[379137288,1755155501081,-460.0,0.00018183,2]
[379137289,1755155501090,-460.0,0.00018183,2]
[379137290,1755155501099,-460.0,0.00018183,2]
[379137291,1755155501108,-460.0,0.00018183,2]
[379137292,1755155501118,-473.47,0.00018183,2]
[379137293,1755155501127,-460.0,0.00018183,2]
[379137294,1755155501136,-461.95065278,0.00018183,2]
[379137295,1755155501145,-460.0,0.00018183,2]
[379137296,1755155501156,-830.36,0.00018183,2]
[379137297,1755155501165,-637.98,0.00018183,2]
[379137298,1755155501175,-460.0,0.00018183,2]
[379137299,1755155501185,-460.0,0.00018183,2]
[379137300,1755155501199,-460.0,0.00018183,2]
[379137301,1755155501209,-460.0,0.00018183,2]
[379137302,1755155501219,-628.04,0.00018183,2]